Workbook

Sheet م1 1
O1: مدرسة / | Q1: ='[1]بداية العام'!$E$10 -> الجشم للتعليم الأساسي والثانوي
P2: الصف / | Q2: الأول
C4: كشوفات رصد درجات أعمال وامتحانات الفصل الدراسي الأول في المرحلة الأساسية للعام الدراسي
B5: ='[1]بداية العام'!$E$11 -> عتق | Q5: ='[1]بداية العام'!$E$9 -> 2021 - 2020
A6: رقم مسلسل | B6: اســـــــم الطالـــب | C6: القرآن الكريم | F6: التربية الإسلامية | I6: اللغة العربية | L6: الرياضيات | O6: العلوم | R6: المجموع الكلي | S6: نتيجة الفصل الأول | T6: الملاحظات
C7: محصلة الفصل الأول | D7: امتحان الفصل الأول | E7: المجموع | F7: محصلة الفصل الأول | G7: امتحان الفصل الأول | H7: المجموع | I7: محصلة الفصل الأول | J7: امتحان الفصل الأول | K7: المجموع | L7: محصلة الفصل الأول | M7: امتحان الفصل الأول | N7: المجموع | O7: محصلة الفصل الأول | P7: امتحان الفصل الأول | Q7: المجموع
C8: 20 | D8: 30 | E8: 50 | F8: 20 | G8: 30 | H8: 50 | I8: 20 | J8: 30 | K8: 50 | L8: 20 | M8: 30 | N8: 50 | O8: 20 | P8: 30 | Q8: 50 | R8: 250
A9: 1 | B9: =[1]ر1!B7 -> تالين وهبي محمد الصهيبي | C9: =([1]ر1!E7+[1]ر1!F7)/10 -> 20 | D9: =[1]ر1!G7 -> 30 | E9: =ROUND((C9+D9),0) -> 50 | F9: =([1]ر1!K7+[1]ر1!L7)/10 -> 20 | G9: =[1]ر1!M7 -> 30 | H9: =ROUND((F9+G9),0) -> 50 | I9: =([1]ر1!Q7+[1]ر1!R7)/10 -> 20 | J9: =[1]ر1!S7 -> 30 | K9: =ROUND((I9+J9),0) -> 50 | L9: =([1]ر1!W7+[1]ر1!X7)/10 -> 20 | M9: =[1]ر1!Y7 -> 30 | N9: =ROUND((L9+M9),0) -> 50 | O9: =([1]ر1!AC7+[1]ر1!AD7)/10 -> 20 | P9: =[1]ر1!AE7 -> 30 | Q9: =ROUND((O9+P9),0) -> 50 | R9: =ROUND((Q9+N9+K9+H9+E9),0) -> 250 | S9: =IF(AND(Q9>=25,N9>=25,K9>=25,H9>=25,E9>=25),"ناجح","راسب") -> ناجح
A10: 2 | B10: =[1]ر1!B8 -> حسين زبن الله حسين دوح | C10: =([1]ر1!E8+[1]ر1!F8)/10 -> 20 | D10: =[1]ر1!G8 -> 30 | E10: =ROUND((C10+D10),0) -> 50 | F10: =([1]ر1!K8+[1]ر1!L8)/10 -> 19.5 | G10: =[1]ر1!M8 -> 30 | H10: =ROUND((F10+G10),0) -> 50 | I10: =([1]ر1!Q8+[1]ر1!R8)/10 -> 19.9 | J10: =[1]ر1!S8 -> 30 | K10: =ROUND((I10+J10),0) -> 50 | L10: =([1]ر1!W8+[1]ر1!X8)/10 -> 20 | M10: =[1]ر1!Y8 -> 30 | N10: =ROUND((L10+M10),0) -> 50 | O10: 3 | P10: 14 | Q10: =ROUND((O10+P10),0) -> 17 | R10: =ROUND((Q10+N10+K10+H10+E10),0) -> 217 | S10: =IF(AND(Q10>=25,N10>=25,K10>=25,H10>=25,E10>=25),"ناجح","راسب") -> راسب
A11: 3 | B11: =[1]ر1!B9 -> حنين ناصر علي معيض | C11: =([1]ر1!E9+[1]ر1!F9)/10 -> 19.3 | D11: =[1]ر1!G9 -> 28 | E11: 47 | F11: =([1]ر1!K9+[1]ر1!L9)/10 -> 19.5 | G11: =[1]ر1!M9 -> 25 | H11: 45 | I11: =([1]ر1!Q9+[1]ر1!R9)/10 -> 19.7 | J11: =[1]ر1!S9 -> 30 | K11: 50 | L11: =([1]ر1!W9+[1]ر1!X9)/10 -> 19.7 | M11: =[1]ر1!Y9 -> 30 | N11: 50 | O11: =([1]ر1!AC9+[1]ر1!AD9)/10 -> 18.3 | P11: =[1]ر1!AE9 -> 28 | Q11: 46 | R11: 238 | S11: ناجح
A12: 4 | B12: =[1]ر1!B10 -> رؤى صالح سالم معيض | C12: =([1]ر1!E10+[1]ر1!F10)/10 -> 20 | D12: =[1]ر1!G10 -> 30 | E12: 50 | F12: =([1]ر1!K10+[1]ر1!L10)/10 -> 20 | G12: =[1]ر1!M10 -> 30 | H12: 50 | I12: =([1]ر1!Q10+[1]ر1!R10)/10 -> 20 | J12: =[1]ر1!S10 -> 30 | K12: 50 | L12: =([1]ر1!W10+[1]ر1!X10)/10 -> 20 | M12: =[1]ر1!Y10 -> 30 | N12: 50 | O12: =([1]ر1!AC10+[1]ر1!AD10)/10 -> 20 | P12: =[1]ر1!AE10 -> 30 | Q12: 50 | R12: 250 | S12: ناجح
A13: 5 | B13: =[1]ر1!B11 -> سعيد محمد سالم بجنف | C13: 10 | D13: 10 | E13: 20 | F13: =([1]ر1!K11+[1]ر1!L11)/10 -> 19.3 | G13: =[1]ر1!M11 -> 30 | H13: 49 | I13: =([1]ر1!Q11+[1]ر1!R11)/10 -> 19.8 | J13: =[1]ر1!S11 -> 30 | K13: 50 | L13: =([1]ر1!W11+[1]ر1!X11)/10 -> 18.5 | M13: =[1]ر1!Y11 -> 29 | N13: 48 | O13: =([1]ر1!AC11+[1]ر1!AD11)/10 -> 19 | P13: =[1]ر1!AE11 -> 28 | Q13: 47 | R13: 214 | S13: راسب
A14: 6 | B14: =[1]ر1!B12 -> سند عبدالله صالح لنقس | C14: =([1]ر1!E12+[1]ر1!F12)/10 -> 20 | D14: =[1]ر1!G12 -> 30 | E14: 50 | F14: =([1]ر1!K12+[1]ر1!L12)/10 -> 20 | G14: =[1]ر1!M12 -> 30 | H14: 50 | I14: =([1]ر1!Q12+[1]ر1!R12)/10 -> 20 | J14: =[1]ر1!S12 -> 30 | K14: 50 | L14: =([1]ر1!W12+[1]ر1!X12)/10 -> 20 | M14: =[1]ر1!Y12 -> 30 | N14: 50 | O14: =([1]ر1!AC12+[1]ر1!AD12)/10 -> 20 | P14: =[1]ر1!AE12 -> 30 | Q14: 50 | R14: 250 | S14: ناجح
A15: 7 | B15: =[1]ر1!B13 -> طالب أنور حامد معيض | C15: =([1]ر1!E13+[1]ر1!F13)/10 -> 20 | D15: =[1]ر1!G13 -> 30 | E15: 50 | F15: =([1]ر1!K13+[1]ر1!L13)/10 -> 19.8 | G15: =[1]ر1!M13 -> 30 | H15: 50 | I15: =([1]ر1!Q13+[1]ر1!R13)/10 -> 18.9 | J15: =[1]ر1!S13 -> 30 | K15: 49 | L15: =([1]ر1!W13+[1]ر1!X13)/10 -> 19.5 | M15: =[1]ر1!Y13 -> 29 | N15: 49 | O15: =([1]ر1!AC13+[1]ر1!AD13)/10 -> 19.5 | P15: =[1]ر1!AE13 -> 30 | Q15: 50 | R15: 248 | S15: ناجح
A16: 8 | B16: =[1]ر1!B14 -> عماد ماجد مبارك حقروص | C16: =([1]ر1!E14+[1]ر1!F14)/10 -> 18.5 | D16: =[1]ر1!G14 -> 25 | E16: 44 | F16: =([1]ر1!K14+[1]ر1!L14)/10 -> 19.3 | G16: =[1]ر1!M14 -> 30 | H16: 49 | I16: 5 | J16: 10 | K16: 15 | L16: =([1]ر1!W14+[1]ر1!X14)/10 -> 19.7 | M16: =[1]ر1!Y14 -> 29 | N16: 49 | O16: =([1]ر1!AC14+[1]ر1!AD14)/10 -> 19.4 | P16: =[1]ر1!AE14 -> 28 | Q16: 47 | R16: 204 | S16: راسب
A17: 9 | B17: =[1]ر1!B15 -> ناصر أحمد ناصر جلعوم | C17: =([1]ر1!E15+[1]ر1!F15)/10 -> 19.5 | D17: =[1]ر1!G15 -> 30 | E17: 50 | F17: =([1]ر1!K15+[1]ر1!L15)/10 -> 20 | G17: =[1]ر1!M15 -> 27 | H17: 47 | I17: =([1]ر1!Q15+[1]ر1!R15)/10 -> 18.9 | J17: =[1]ر1!S15 -> 30 | K17: 49 | L17: =([1]ر1!W15+[1]ر1!X15)/10 -> 20 | M17: =[1]ر1!Y15 -> 30 | N17: 50 | O17: =([1]ر1!AC15+[1]ر1!AD15)/10 -> 18.5 | P17: =[1]ر1!AE15 -> 30 | Q17: 49 | R17: 245 | S17: ناجح
A18: 10 | B18: =[1]ر1!B16 -> يوسف محمد سعيد حقروص | C18: =([1]ر1!E16+[1]ر1!F16)/10 -> 19.9 | D18: =[1]ر1!G16 -> 28 | E18: 48 | F18: =([1]ر1!K16+[1]ر1!L16)/10 -> 19.9 | G18: =[1]ر1!M16 -> 30 | H18: 50 | I18: =([1]ر1!Q16+[1]ر1!R16)/10 -> 19 | J18: =[1]ر1!S16 -> 30 | K18: 49 | L18: =([1]ر1!W16+[1]ر1!X16)/10 -> 19.6 | M18: =[1]ر1!Y16 -> 29 | N18: 49 | O18: =([1]ر1!AC16+[1]ر1!AD16)/10 -> 19.9 | P18: =[1]ر1!AE16 -> 30 | Q18: 50 | R18: 246 | S18: ناجح
A19: 11 | B19: =[1]ر1!B17 -> 0 | C19: =([1]ر1!E17+[1]ر1!F17)/10 -> 0 | D19: =[1]ر1!G17 -> 0 | E19: 0 | F19: =([1]ر1!K17+[1]ر1!L17)/10 -> 0 | G19: =[1]ر1!M17 -> 0 | H19: 0 | I19: =([1]ر1!Q17+[1]ر1!R17)/10 -> 0 | J19: =[1]ر1!S17 -> 0 | K19: 0 | L19: =([1]ر1!W17+[1]ر1!X17)/10 -> 0 | M19: =[1]ر1!Y17 -> 0 | N19: 0 | O19: =([1]ر1!AC17+[1]ر1!AD17)/10 -> 0 | P19: =[1]ر1!AE17 -> 0 | Q19: 0 | R19: 0 | S19: راسب
A20: 12 | B20: =[1]ر1!B18 -> 0 | C20: =([1]ر1!E18+[1]ر1!F18)/10 -> 0 | D20: =[1]ر1!G18 -> 0 | E20: 0 | F20: =([1]ر1!K18+[1]ر1!L18)/10 -> 0 | G20: =[1]ر1!M18 -> 0 | H20: 0 | I20: =([1]ر1!Q18+[1]ر1!R18)/10 -> 0 | J20: =[1]ر1!S18 -> 0 | K20: 0 | L20: =([1]ر1!W18+[1]ر1!X18)/10 -> 0 | M20: =[1]ر1!Y18 -> 0 | N20: 0 | O20: =([1]ر1!AC18+[1]ر1!AD18)/10 -> 0 | P20: =[1]ر1!AE18 -> 0 | Q20: 0 | R20: 0 | S20: راسب
A21: 13 | B21: =[1]ر1!B19 -> 0 | C21: =([1]ر1!E19+[1]ر1!F19)/10 -> 0 | D21: =[1]ر1!G19 -> 0 | E21: 0 | F21: =([1]ر1!K19+[1]ر1!L19)/10 -> 0 | G21: =[1]ر1!M19 -> 0 | H21: 0 | I21: =([1]ر1!Q19+[1]ر1!R19)/10 -> 0 | J21: =[1]ر1!S19 -> 0 | K21: 0 | L21: =([1]ر1!W19+[1]ر1!X19)/10 -> 0 | M21: =[1]ر1!Y19 -> 0 | N21: 0 | O21: =([1]ر1!AC19+[1]ر1!AD19)/10 -> 0 | P21: =[1]ر1!AE19 -> 0 | Q21: 0 | R21: 0 | S21: راسب
A22: 14 | B22: =[1]ر1!B20 -> 0 | C22: =([1]ر1!E20+[1]ر1!F20)/10 -> 0 | D22: =[1]ر1!G20 -> 0 | E22: 0 | F22: =([1]ر1!K20+[1]ر1!L20)/10 -> 0 | G22: =[1]ر1!M20 -> 0 | H22: 0 | I22: =([1]ر1!Q20+[1]ر1!R20)/10 -> 0 | J22: =[1]ر1!S20 -> 0 | K22: 0 | L22: =([1]ر1!W20+[1]ر1!X20)/10 -> 0 | M22: =[1]ر1!Y20 -> 0 | N22: 0 | O22: =([1]ر1!AC20+[1]ر1!AD20)/10 -> 0 | P22: =[1]ر1!AE20 -> 0 | Q22: 0 | R22: 0 | S22: راسب
A23: 15 | B23: =[1]ر1!B21 -> 0 | C23: =([1]ر1!E21+[1]ر1!F21)/10 -> 0 | D23: =[1]ر1!G21 -> 0 | E23: 0 | F23: =([1]ر1!K21+[1]ر1!L21)/10 -> 0 | G23: =[1]ر1!M21 -> 0 | H23: 0 | I23: =([1]ر1!Q21+[1]ر1!R21)/10 -> 0 | J23: =[1]ر1!S21 -> 0 | K23: 0 | L23: =([1]ر1!W21+[1]ر1!X21)/10 -> 0 | M23: =[1]ر1!Y21 -> 0 | N23: 0 | O23: =([1]ر1!AC21+[1]ر1!AD21)/10 -> 0 | P23: =[1]ر1!AE21 -> 0 | Q23: 0 | R23: 0 | S23: راسب
A24: 16 | B24: =[1]ر1!B22 -> 0 | C24: =([1]ر1!E22+[1]ر1!F22)/10 -> 0 | D24: =[1]ر1!G22 -> 0 | E24: 0 | F24: =([1]ر1!K22+[1]ر1!L22)/10 -> 0 | G24: =[1]ر1!M22 -> 0 | H24: 0 | I24: =([1]ر1!Q22+[1]ر1!R22)/10 -> 0 | J24: =[1]ر1!S22 -> 0 | K24: 0 | L24: =([1]ر1!W22+[1]ر1!X22)/10 -> 0 | M24: =[1]ر1!Y22 -> 0 | N24: 0 | O24: =([1]ر1!AC22+[1]ر1!AD22)/10 -> 0 | P24: =[1]ر1!AE22 -> 0 | Q24: 0 | R24: 0 | S24: راسب
A25: 17 | B25: =[1]ر1!B23 -> 0 | C25: =([1]ر1!E23+[1]ر1!F23)/10 -> 0 | D25: =[1]ر1!G23 -> 0 | E25: 0 | F25: =([1]ر1!K23+[1]ر1!L23)/10 -> 0 | G25: =[1]ر1!M23 -> 0 | H25: 0 | I25: =([1]ر1!Q23+[1]ر1!R23)/10 -> 0 | J25: =[1]ر1!S23 -> 0 | K25: 0 | L25: =([1]ر1!W23+[1]ر1!X23)/10 -> 0 | M25: =[1]ر1!Y23 -> 0 | N25: 0 | O25: =([1]ر1!AC23+[1]ر1!AD23)/10 -> 0 | P25: =[1]ر1!AE23 -> 0 | Q25: 0 | R25: 0 | S25: راسب
A26: 18 | B26: =[1]ر1!B24 -> 0 | C26: =([1]ر1!E24+[1]ر1!F24)/10 -> 0 | D26: =[1]ر1!G24 -> 0 | E26: 0 | F26: =([1]ر1!K24+[1]ر1!L24)/10 -> 0 | G26: =[1]ر1!M24 -> 0 | H26: 0 | I26: =([1]ر1!Q24+[1]ر1!R24)/10 -> 0 | J26: =[1]ر1!S24 -> 0 | K26: 0 | L26: =([1]ر1!W24+[1]ر1!X24)/10 -> 0 | M26: =[1]ر1!Y24 -> 0 | N26: 0 | O26: =([1]ر1!AC24+[1]ر1!AD24)/10 -> 0 | P26: =[1]ر1!AE24 -> 0 | Q26: 0 | R26: 0 | S26: راسب
A27: 19 | B27: =[1]ر1!B25 -> 0 | C27: =([1]ر1!E25+[1]ر1!F25)/10 -> 0 | D27: =[1]ر1!G25 -> 0 | E27: 0 | F27: =([1]ر1!K25+[1]ر1!L25)/10 -> 0 | G27: =[1]ر1!M25 -> 0 | H27: 0 | I27: =([1]ر1!Q25+[1]ر1!R25)/10 -> 0 | J27: =[1]ر1!S25 -> 0 | K27: 0 | L27: =([1]ر1!W25+[1]ر1!X25)/10 -> 0 | M27: =[1]ر1!Y25 -> 0 | N27: 0 | O27: =([1]ر1!AC25+[1]ر1!AD25)/10 -> 0 | P27: =[1]ر1!AE25 -> 0 | Q27: 0 | R27: 0 | S27: راسب
A28: 20 | B28: =[1]ر1!B26 -> 0 | C28: =([1]ر1!E26+[1]ر1!F26)/10 -> 0 | D28: =[1]ر1!G26 -> 0 | E28: 0 | F28: =([1]ر1!K26+[1]ر1!L26)/10 -> 0 | G28: =[1]ر1!M26 -> 0 | H28: 0 | I28: =([1]ر1!Q26+[1]ر1!R26)/10 -> 0 | J28: =[1]ر1!S26 -> 0 | K28: 0 | L28: =([1]ر1!W26+[1]ر1!X26)/10 -> 0 | M28: =[1]ر1!Y26 -> 0 | N28: 0 | O28: =([1]ر1!AC26+[1]ر1!AD26)/10 -> 0 | P28: =[1]ر1!AE26 -> 0 | Q28: 0 | R28: 0 | S28: راسب
A29: 21 | B29: =[1]ر1!B27 -> 0 | C29: =([1]ر1!E27+[1]ر1!F27)/10 -> 0 | D29: =[1]ر1!G27 -> 0 | E29: 0 | F29: =([1]ر1!K27+[1]ر1!L27)/10 -> 0 | G29: =[1]ر1!M27 -> 0 | H29: 0 | I29: =([1]ر1!Q27+[1]ر1!R27)/10 -> 0 | J29: =[1]ر1!S27 -> 0 | K29: 0 | L29: =([1]ر1!W27+[1]ر1!X27)/10 -> 0 | M29: =[1]ر1!Y27 -> 0 | N29: 0 | O29: =([1]ر1!AC27+[1]ر1!AD27)/10 -> 0 | P29: =[1]ر1!AE27 -> 0 | Q29: 0 | R29: 0 | S29: راسب
A30: 22 | B30: =[1]ر1!B28 -> 0 | C30: =([1]ر1!E28+[1]ر1!F28)/10 -> 0 | D30: =[1]ر1!G28 -> 0 | E30: 0 | F30: =([1]ر1!K28+[1]ر1!L28)/10 -> 0 | G30: =[1]ر1!M28 -> 0 | H30: 0 | I30: =([1]ر1!Q28+[1]ر1!R28)/10 -> 0 | J30: =[1]ر1!S28 -> 0 | K30: 0 | L30: =([1]ر1!W28+[1]ر1!X28)/10 -> 0 | M30: =[1]ر1!Y28 -> 0 | N30: 0 | O30: =([1]ر1!AC28+[1]ر1!AD28)/10 -> 0 | P30: =[1]ر1!AE28 -> 0 | Q30: 0 | R30: 0 | S30: راسب
A31: 23 | B31: =[1]ر1!B29 -> 0 | C31: =([1]ر1!E29+[1]ر1!F29)/10 -> 0 | D31: =[1]ر1!G29 -> 0 | E31: 0 | F31: =([1]ر1!K29+[1]ر1!L29)/10 -> 0 | G31: =[1]ر1!M29 -> 0 | H31: 0 | I31: =([1]ر1!Q29+[1]ر1!R29)/10 -> 0 | J31: =[1]ر1!S29 -> 0 | K31: 0 | L31: =([1]ر1!W29+[1]ر1!X29)/10 -> 0 | M31: =[1]ر1!Y29 -> 0 | N31: 0 | O31: =([1]ر1!AC29+[1]ر1!AD29)/10 -> 0 | P31: =[1]ر1!AE29 -> 0 | Q31: 0 | R31: 0 | S31: راسب
A32: 24 | B32: =[1]ر1!B30 -> 0 | C32: =([1]ر1!E30+[1]ر1!F30)/10 -> 0 | D32: =[1]ر1!G30 -> 0 | E32: 0 | F32: =([1]ر1!K30+[1]ر1!L30)/10 -> 0 | G32: =[1]ر1!M30 -> 0 | H32: 0 | I32: =([1]ر1!Q30+[1]ر1!R30)/10 -> 0 | J32: =[1]ر1!S30 -> 0 | K32: 0 | L32: =([1]ر1!W30+[1]ر1!X30)/10 -> 0 | M32: =[1]ر1!Y30 -> 0 | N32: 0 | O32: =([1]ر1!AC30+[1]ر1!AD30)/10 -> 0 | P32: =[1]ر1!AE30 -> 0 | Q32: 0 | R32: 0 | S32: راسب
A33: 25 | B33: =[1]ر1!B31 -> 0 | C33: =([1]ر1!E31+[1]ر1!F31)/10 -> 0 | D33: =[1]ر1!G31 -> 0 | E33: 0 | F33: =([1]ر1!K31+[1]ر1!L31)/10 -> 0 | G33: =[1]ر1!M31 -> 0 | H33: 0 | I33: =([1]ر1!Q31+[1]ر1!R31)/10 -> 0 | J33: =[1]ر1!S31 -> 0 | K33: 0 | L33: =([1]ر1!W31+[1]ر1!X31)/10 -> 0 | M33: =[1]ر1!Y31 -> 0 | N33: 0 | O33: =([1]ر1!AC31+[1]ر1!AD31)/10 -> 0 | P33: =[1]ر1!AE31 -> 0 | Q33: 0 | R33: 0 | S33: راسب
A34: 26 | B34: =[1]ر1!B32 -> 0 | C34: =([1]ر1!E32+[1]ر1!F32)/10 -> 0 | D34: =[1]ر1!G32 -> 0 | E34: 0 | F34: =([1]ر1!K32+[1]ر1!L32)/10 -> 0 | G34: =[1]ر1!M32 -> 0 | H34: 0 | I34: =([1]ر1!Q32+[1]ر1!R32)/10 -> 0 | J34: =[1]ر1!S32 -> 0 | K34: 0 | L34: =([1]ر1!W32+[1]ر1!X32)/10 -> 0 | M34: =[1]ر1!Y32 -> 0 | N34: 0 | O34: =([1]ر1!AC32+[1]ر1!AD32)/10 -> 0 | P34: =[1]ر1!AE32 -> 0 | Q34: 0 | R34: 0 | S34: راسب
A35: 27 | B35: =[1]ر1!B33 -> 0 | C35: =([1]ر1!E33+[1]ر1!F33)/10 -> 0 | D35: =[1]ر1!G33 -> 0 | E35: 0 | F35: =([1]ر1!K33+[1]ر1!L33)/10 -> 0 | G35: =[1]ر1!M33 -> 0 | H35: 0 | I35: =([1]ر1!Q33+[1]ر1!R33)/10 -> 0 | J35: =[1]ر1!S33 -> 0 | K35: 0 | L35: =([1]ر1!W33+[1]ر1!X33)/10 -> 0 | M35: =[1]ر1!Y33 -> 0 | N35: 0 | O35: =([1]ر1!AC33+[1]ر1!AD33)/10 -> 0 | P35: =[1]ر1!AE33 -> 0 | Q35: 0 | R35: 0 | S35: راسب
A36: 28 | B36: =[1]ر1!B34 -> 0 | C36: =([1]ر1!E34+[1]ر1!F34)/10 -> 0 | D36: =[1]ر1!G34 -> 0 | E36: 0 | F36: =([1]ر1!K34+[1]ر1!L34)/10 -> 0 | G36: =[1]ر1!M34 -> 0 | H36: 0 | I36: =([1]ر1!Q34+[1]ر1!R34)/10 -> 0 | J36: =[1]ر1!S34 -> 0 | K36: 0 | L36: =([1]ر1!W34+[1]ر1!X34)/10 -> 0 | M36: =[1]ر1!Y34 -> 0 | N36: 0 | O36: =([1]ر1!AC34+[1]ر1!AD34)/10 -> 0 | P36: =[1]ر1!AE34 -> 0 | Q36: 0 | R36: 0 | S36: راسب
A37: 29 | B37: =[1]ر1!B35 -> 0 | C37: =([1]ر1!E35+[1]ر1!F35)/10 -> 0 | D37: =[1]ر1!G35 -> 0 | E37: 0 | F37: =([1]ر1!K35+[1]ر1!L35)/10 -> 0 | G37: =[1]ر1!M35 -> 0 | H37: 0 | I37: =([1]ر1!Q35+[1]ر1!R35)/10 -> 0 | J37: =[1]ر1!S35 -> 0 | K37: 0 | L37: =([1]ر1!W35+[1]ر1!X35)/10 -> 0 | M37: =[1]ر1!Y35 -> 0 | N37: 0 | O37: =([1]ر1!AC35+[1]ر1!AD35)/10 -> 0 | P37: =[1]ر1!AE35 -> 0 | Q37: 0 | R37: 0 | S37: راسب
A38: 30 | B38: =[1]ر1!B36 -> 0 | C38: =([1]ر1!E36+[1]ر1!F36)/10 -> 0 | D38: =[1]ر1!G36 -> 0 | E38: 0 | F38: =([1]ر1!K36+[1]ر1!L36)/10 -> 0 | G38: =[1]ر1!M36 -> 0 | H38: 0 | I38: =([1]ر1!Q36+[1]ر1!R36)/10 -> 0 | J38: =[1]ر1!S36 -> 0 | K38: 0 | L38: =([1]ر1!W36+[1]ر1!X36)/10 -> 0 | M38: =[1]ر1!Y36 -> 0 | N38: 0 | O38: =([1]ر1!AC36+[1]ر1!AD36)/10 -> 0 | P38: =[1]ر1!AE36 -> 0 | Q38: 0 | R38: 0 | S38: راسب
B40: راجعه وصحح الأسماء والدرجات | H40: مدير المدرسة | P40: يعتمد / مدير إدارة التربية والتعليم م/ عتق
H41: الأستاذ / | I41: ='[1]بداية العام'!$E$12 -> علي سالم النخعي | P41: الأستاذ / | Q41: ='[1]بداية العام'!$E$13 -> محمد عوض عامر
H42: الختم والتوقيع | Q42: الختم والتوقيع

Sheet ش1 1
A3: الجهورية اليمنية | K3: مدرسة / | L3: ='[1]بداية العام'!$E$10 -> الجشم للتعليم الأساسي والثانوي
A4: مكتب وزارة التربية والتعليم م/ شبوة | K4: الصف / | L4: الأول
A5: إدارة التربية والتعليم بمديرية / | D5: ='[1]بداية العام'!$E$11 -> عتق | K5: الشعبة / | L5: =[1]أول!$C$7 -> 0
E8: شهادة تقويم أعمال نصف السنة
F10: للعام الدراسي : | H10: ='[1]بداية العام'!$E$9 -> 2021 - 2020
B12: اســـــــــــــــــــم الطالــــــــــــب | D12: =VLOOKUP(M12,'م1 1'!A9:B38,2,FALSE) -> تالين وهبي محمد الصهيبي | K12: الرقـــــــــم فـــــي السجـــــــل | M12: 1
B14: المـــــــــــــــــــــواد الدراسية | D14: الفصــــــــــــــــــــــــــــــــــــــــــــــــــــــــــــــــــــــــــــــــــل الأول | H14: المجموع الكلي | J14: ملاحظـــــــــــــــــــــــــــــــــــــــــــــــــــات مربي الصف
D15: 20 المحصلــــــــــــة الأولى | F15: 30 امتحــــــــــــــان الفصل | J15: =IF(AND(H17>=25,H18>=25,H19>=25,H20>=25,H21>=25)," بارك الله فيك ووهبك مزيد من التفوق والنجاح في الفصل الثاني","ما زالت الفرصة أمامك متاحة وكل ما عليك فعله هو الاهتمام أكثر بدروسك مع بذل مزيد من الجهد في الفصل الثاني") -> بارك الله فيك ووهبك مزيد من التفوق والنجاح في الفصل الثاني
D16: رقمـــــــا | E16: كــــــــــتابة | F16: رقمـــــــا | G16: كــــــــــتابة | H16: رقمـــــــا | I16: كــــــــــتابة
B17: القـــــــرآن الكريـــــــم | D17: =ROUND(VLOOKUP(M12,'م1 1'!A9:C38,3,FALSE),0) -> 20 | E17: =Horof(D17) -> عشرون | F17: =VLOOKUP(M12,'م1 1'!A9:D38,4,FALSE) -> 30 | G17: =Horof(F17) -> ثلاثون | H17: =F17+D17 -> 50 | I17: =Horof(H17) -> خمسون | J17: ملاحظــــــــــــــــــــــــــــــــــــــــــــــــــــــــــــــــــــات الإدارة
B18: التربية الإسلامية | D18: =ROUND(VLOOKUP(M12,'م1 1'!A9:F38,6,FALSE),0) -> 20 | E18: =Horof(D18) -> عشرون | F18: =VLOOKUP(M12,'م1 1'!A9:G38,7,FALSE) -> 30 | G18: =Horof(F18) -> ثلاثون | H18: =F18+D18 -> 50 | I18: =Horof(H18) -> خمسون | J18: =IF(AND(H17>=25,H18>=25,H19>=25,H20>=25,H21>=25),"نتيجة مشرفة ونتمنى لك دوام التقدم والنجاح","لا تيأس ولا تحزن فالرسوب هو بداية النجاح، مزيد من الإصرار والعزيمة والجهد وسيكون النجاح حليفك في الفصل الثاني إن شاء الله") -> نتيجة مشرفة ونتمنى لك دوام التقدم والنجاح
B19: اللغـــــــة العربيــــــــة | D19: =ROUND(VLOOKUP(M12,'م1 1'!A9:I38,9,FALSE),0) -> 20 | E19: عشرون | F19: =VLOOKUP(M12,'م1 1'!A9:J38,10,FALSE) -> 30 | G19: ثلاثون | H19: 50 | I19: خمسون
B20: الرياضيـــــــــــــــــــــات | D20: =ROUND(VLOOKUP(M12,'م1 1'!A9:L38,12,FALSE),0) -> 20 | E20: عشرون | F20: =VLOOKUP(M12,'م1 1'!A9:M38,13,FALSE) -> 30 | G20: ثلاثون | H20: 50 | I20: خمسون | J20: المجـــــــــموع | K20: =H17+H18+H19+H20+H21 -> 250 | L20: =Horof(K20) -> مائتان و خمسون
B21: العلــــــوم والصحـة | D21: =ROUND(VLOOKUP(M12,'م1 1'!A9:O38,15,FALSE),0) -> 20 | E21: عشرون | F21: =VLOOKUP(M12,'م1 1'!A9:P38,16,FALSE) -> 30 | G21: ثلاثون | H21: 50 | I21: خمسون | J21: النتيجــــــــــــة | K21: =IF(AND(H17>=25,H18>=25,H19>=25,H20>=25,H21>=25),"ناجح","راسب") -> ناجح
B22: - | D22: - | E22: - | F22: - | G22: - | H22: - | I22: - | J22: الترتيـــــــــــــب | K22: =SUMPRODUCT((K20<='م1 1'!$R$9:$R$38)/COUNTIF('م1 1'!$R$9:$R$38,'م1 1'!$R$9:$R$38)) -> 1 | L22: =OrdeUP100(K22) -> الأوّل
B23: - | D23: - | E23: - | F23: - | G23: - | H23: - | J23: النسبــــــــــــــــة | K23: =K20/5 -> 50 | L23: %
B25: توقيع مربي الصف | I25: توقيع إدارة المدرسة والختم
